[Event "Germany Countries-chT Youth 2022"]
[Site "Wiesbaden"]
[Date "2022.10.01"]
[Round "1"]
[White "Haubold, Sebastian Marcel"]
[Black "Gluma, Christian"]
[Result "1-0"]
[ECO "B06"]
[WhiteElo "2039"]
[BlackElo "2107"]
[Annotator "TA"]
[PlyCount "65"]
[EventDate "2022.09.28"]
[EventType "team-tourn"]
[EventRounds "7"]
[EventCountry "GER"]
[SourceTitle "playchess.com"]
[Source "ChessBase"]
[SourceQuality "1"]
[TimeControl "40/5400+30:1800+30"]

{[%evp 9,65,14,39,37,52,47,52,45,46,0,80,87,87,81,93,66,80,74,195,221,217,220,256,249,233,237,467,427,461,461,441,424,430,439,418,347,558,570,518,534,548,542,618,606,606,606,840,809,1008,944,1319,1310,1268,1239,2212,1997,2077,1917]} 1. e4 {[%emt 0:00:06]} g6 {[%emt 0:00:08]} 2. d4 {[%emt 0:00:05]} Bg7 {[%emt 0:00:04]} 3. Nf3 {[%emt 0:00:06]} c6 {[%emt 0:00:17]} 4. h3 {[%emt 0:00:05]} d5 {[%emt 0:00:15]} 5. e5 {[%emt 0:00:20]} f6 {[%emt 0:00:55]} 6. c4 {[%emt 0:00:19] B06: Modern Defence.} e6 {[%emt 0:04:25]} 7. exf6 {[%emt 0:08:20]} Nxf6 {[%emt 0:00:36]} 8. Nc3 {[%emt 0:00:40] White is slightly better.} O-O {[%emt 0:03:20]} 9. Bd3 {[%emt 0:05:44]} (9. Be2 $14) 9... Nbd7 {[%emt 0:03:27]} (9... c5 $1 $11 {keeps the balance.}) 10. O-O $16 {[%emt 0:03:20] [#]} Ne8 $146 {[%emt 0:15:03]} ({Predecessor:} 10... Re8 11. Re1 c5 12. Bg5 cxd4 13. Nxd4 Qb6 14. Ndb5 a6 15. Be3 Qc6 16. cxd5 exd5 {1-0 (48) Fridman,R (2508)-Smit,E (2270) Germany 2012}) 11. Qe2 {[%emt 0:10:51]} Ndf6 {[%emt 0:04:57]} 12. c5 {[%emt 0:10:36]} b6 {[%emt 0:06:31]} 13. b4 {[%emt 0:05:31] White is much more active. The black rooks are badly placed.} a5 {[%emt 0:08:05] [#] A mistake that costs the game.} (13... bxc5 $16 14. bxc5 Nh5) 14. Na4 $1 $18 {[%emt 0:02:18]} b5 {[%emt 0:10:26]} 15. Nb6 {[%emt 0:00:08]} Ra7 {[%emt 0:00:22]} 16. Ne5 {[%emt 0:01:44]} Qc7 {[%emt 0:02:14]} 17. a4 {[%emt 0:09:28][%cal Ba2a4,Ba4b5][%mdl 32]} Nd7 $2 {[%emt 0:07:55]} (17... axb4 18. Nxc8 Qxc8) 18. Nxc8 {[%emt 0:02:50]} (18. Nexd7 Bxd7 19. axb5 Bxd4 $18) 18... Qxc8 {[%emt 0:04:13] [#]} 19. Nxc6 {[%emt 0:00:32][%mdl 512]} Qxc6 {[%emt 0:01:05]} 20. axb5 {[%emt 0:00:07]} Qc8 {[%emt 0:03:03]} 21. Qxe6+ {[%emt 0:01:05]} Kh8 {[%emt 0:00:40]} 22. Qxd5 {[%emt 0:01:03] Threatens to win with b6.} Qa8 $2 {[%emt 0:02:51]} (22... Nef6 23. Qc4 Qd8) 23. Qxa8 {[%emt 0:08:32] White is clearly winning.} Rxa8 {[%emt 0:00:10]} 24. Be3 {[%emt 0:00:12]} a4 {[%emt 0:02:46]} 25. Be4 {[%emt 0:01:40]} Rb8 {[%emt 0:02:04]} 26. Bc6 {[%emt 0:01:53] This bishop pair is nice.} Rf7 {[%emt 0:00:37]} 27. Rxa4 {[%emt 0:00:25][%cal Ba1a4,Ba4a7,Ba7a8][%mdl 32]} Nf8 {[%emt 0:01:48]} 28. Rfa1 {[%emt 0:07:05] Ra8 is the strong threat.} Nc7 {[%emt 0:01:01] Prevents Ra8.} 29. Ra7 {[%emt 0:00:52]} Kg8 {[%emt 0:00:10]} 30. b6 {[%emt 0:01:20]} Nce6 {[%emt 0:00:04]} 31. Ra8 {[%emt 0:01:06]} Bxd4 {[%emt 0:03:52]} 32. Bxd4 {[%emt 0:00:21]} Nxd4 {[%emt 0:01:09]} 33. Bd5 {[%emt 0:00:22] Weighted Error Value: White=0.08 (flawless) /Black=0.51} 1-0

[Event "Germany Countries-chT Youth 2022"]
[Site "Wiesbaden"]
[Date "2022.10.01"]
[Round "1"]
[White "Hänselmann, Hendrik"]
[Black "Hecht, Jonas Christian"]
[Result "1/2-1/2"]
[ECO "B23"]
[WhiteElo "1989"]
[BlackElo "1852"]
[Annotator "TA"]
[PlyCount "56"]
[EventDate "2022.09.28"]
[EventType "team-tourn"]
[EventRounds "7"]
[EventCountry "GER"]
[SourceTitle "playchess.com"]
[Source "ChessBase"]
[SourceQuality "1"]
[TimeControl "40/5400+30:1800+30"]

{[%evp 9,56,1,6,0,4,-1,0,23,16,-12,0,-6,0,-15,0,8,18,16,22,10,18,18,20,20,21,-28,20,0,31,27,37,30,50,31,35,33,63,45,45,43,57,14,37,20,27,29,37,21,30]} 1. e4 {[%emt 0:00:04]} c5 {[%emt 0:00:04]} 2. Nc3 {[%emt 0:00:04]} Nc6 {[%emt 0:00:07]} 3. Bb5 {[%emt 0:00:05]} Nd4 {[%emt 0:00:11]} 4. Nf3 {[%emt 0:00:05]} a6 {[%emt 0:02:18]} 5. Bd3 {[%emt 0:00:13]} g6 {[%emt 0:08:52]} 6. O-O {[%emt 0:02:33] B23: Closed Sicilian: Lines without g3.} Bg7 {[%emt 0:01:55]} 7. Re1 {[%emt 0:02:03]} Nxf3+ {[%emt 0:04:57]} 8. Qxf3 {[%emt 0:00:10]} d6 {[%emt 0:01:06]} 9. Bc4 {[%emt 0:05:42]} Nf6 {[%emt 0:03:52] [#]} 10. h3 $146 {[%emt 0:02:27]} ({Predecessor:} 10. d3 O-O 11. a4 e6 12. Bg5 h6 13. Bh4 g5 14. Bg3 e5 15. Nd5 Nxd5 16. Bxd5 {0-1 (53) Lagarde,M (2648)-Vakhidov,J (2534) Europe Echecs INT 2021}) 10... O-O {[%emt 0:00:39]} 11. a4 {[%emt 0:01:19]} Rb8 {[%emt 0:04:54]} 12. d3 {[%emt 0:04:21]} Bd7 {[%emt 0:01:28]} 13. a5 {[%emt 0:02:25]} Bc6 {[%emt 0:05:02]} 14. Qe2 {[%emt 0:09:37]} Re8 {[%emt 0:03:53]} 15. Be3 {[%emt 0:10:45]} e6 {[%emt 0:12:56]} 16. Bb3 {[%emt 0:07:21]} Rc8 {[%emt 0:08:07]} 17. Na4 {[%emt 0:13:05]} (17. Qd2 $142) 17... Nd7 {[%emt 0:06:17]} (17... Qxa5 {deserves consideration.} 18. Nxc5 Qc7) 18. c3 {[%emt 0:08:54]} Qxa5 {[%emt 0:10:12] [#] Hoping for ...Qc7.} 19. Nxc5 $1 {[%emt 0:01:27]} Qd8 {[%emt 0:00:21]} 20. Nxd7 {[%emt 0:02:27]} Qxd7 {[%emt 0:01:29]} 21. Bb6 {[%emt 0:04:57]} d5 {[%emt 0:06:01]} 22. e5 {[%emt 0:00:25]} f6 {[%emt 0:01:19]} 23. Bd4 {[%emt 0:02:37] White is more active.} f5 {[%emt 0:02:48]} 24. f4 {[%emt 0:03:31]} Qd8 {[%emt 0:01:37]} 25. Bf2 {[%emt 0:00:59]} Kh8 {[%emt 0:00:26]} 26. Qe3 {[%emt 0:02:07]} Bh6 {[%emt 0:01:02]} 27. h4 {[%emt 0:01:31] Inhibits g5.} Bf8 {[%emt 0:02:05]} 28. Qh3 {[%emt 0:02:45]} h5 {[%emt 0:00:19] Weighted Error Value: White=0.12 (very precise) /Black=0.10 (very precise)} 1/2-1/2

[Event "Germany Countries-chT Youth 2022"]
[Site "Wiesbaden"]
[Date "2022.10.01"]
[Round "1"]
[White "Kocharin, Timur"]
[Black "Hagner, Bennet"]
[Result "0-1"]
[ECO "B90"]
[WhiteElo "1971"]
[BlackElo "2253"]
[Annotator "TA"]
[PlyCount "58"]
[EventDate "2022.09.28"]
[EventType "team-tourn"]
[EventRounds "7"]
[EventCountry "GER"]
[SourceTitle "playchess.com"]
[Source "ChessBase"]
[SourceQuality "1"]
[TimeControl "40/5400+30:1800+30"]

{[%evp 15,58,10,22,30,26,0,11,-6,0,-19,-16,-64,-43,-80,-82,-107,-102,-115,-102,-151,-148,-166,-170,-173,-176,-161,-125,-201,-177,-438,-438,-464,-475,-482,-501,-483,-475,-561,-572,-870,-858,-813,-803,-1986,-1800]} 1. e4 {[%emt 0:00:15]} c5 {[%emt 0:00:04]} 2. Nf3 {[%emt 0:00:26]} d6 {[%emt 0:00:06]} 3. d4 {[%emt 0:01:24]} cxd4 {[%emt 0:00:05]} 4. Nxd4 {[%emt 0:00:06]} Nf6 {[%emt 0:00:05]} 5. Nc3 {[%emt 0:00:07]} a6 {[%emt 0:00:04]} 6. Be3 {[%emt 0:01:05]} e5 {[%emt 0:00:07]} 7. Nf3 {[%emt 0:00:30]} Be7 {[%emt 0:00:26]} 8. Bc4 {[%emt 0:00:38]} Be6 {[%emt 0:00:38]} 9. Bxe6 {[%emt 0:08:16] B90: Sicilian Najdorf: Unusual White 6th moves, 6 Be3 Ng4 and 6 Be3 e5.} fxe6 {[%emt 0:00:02]} 10. O-O {[%emt 0:00:09]} (10. Ng5 $5 {[%cal Rg5e6]} Qd7 11. Qf3 $11) 10... b5 {[%emt 0:19:12] [#]} 11. Ng5 $146 {[%emt 0:11:16] The position is equal.} ({Predecessor:} 11. a3 O-O 12. Qe2 Nc6 13. Rad1 Qc8 14. Rd3 Rb8 15. b4 Rb7 16. Rfd1 Nd8 17. Bg5 {0-1 (64) Mohamed,A (1776)-Merritt,M (2175) Batumi 2018}) 11... Qd7 {[%emt 0:00:42]} 12. f4 {[%emt 0:13:19]} exf4 {[%emt 0:19:26]} 13. Rxf4 {[%emt 0:11:01]} (13. Bxf4 $11 Nc6 14. e5 dxe5 15. Bg3) 13... Nc6 $15 {[%emt 0:19:36][%cal Bb8c6,Bc6e5,Be5g6,Bg6h4][%mdl 32]} 14. Qe2 {[%emt 0:08:28]} O-O {[%emt 0:04:09]} 15. Raf1 {[%emt 0:02:52]} h6 {[%emt 0:02:29]} 16. Nh3 {[%emt 0:00:55]} Ne5 {[%emt 0:01:26]} 17. Kh1 {[%emt 0:07:18]} (17. Re1 $142) 17... Qc6 $17 {[%emt 0:04:13]} 18. Bd4 {[%emt 0:05:49]} b4 $36 {[%emt 0:03:29][%mdl 2048] Keeping White busy.} 19. Nd1 {[%emt 0:02:17]} Ng6 {[%emt 0:01:35]} 20. R4f3 {[%emt 0:06:29]} e5 {[%emt 0:02:30]} ({Worse is} 20... Nxe4 21. Re1 d5 22. Ndf2 $17) 21. Be3 {[%emt 0:01:14]} (21. Bg1 $17) 21... Nh4 {[%emt 0:01:53]} 22. Rg3 {[%emt 0:01:33]} (22. c4 {is a better defense.}) 22... Nxe4 $19 {[%emt 0:01:28] Black is clearly winning.} 23. Rxf8+ {[%emt 0:02:52]} Rxf8 {[%emt 0:00:12]} (23... Kxf8 $2 {too greedy.} 24. Rg4 h5 25. Rxh4 Bxh4 26. Qxh5 $19) 24. Rg4 {[%emt 0:00:23]} h5 {[%emt 0:01:34]} 25. Rxh4 {[%emt 0:01:27]} Bxh4 {[%emt 0:00:11]} 26. Qxh5 {[%emt 0:00:40]} Qxc2 {[%emt 0:04:24] [#] aiming for ...Rf1+.} 27. Qxh4 {[%emt 0:00:48][%cal Oe3g1]} Qxd1+ {[%emt 0:00:09]} 28. Ng1 {[%emt 0:00:36]} Qd3 {[%emt 0:01:47]} 29. Qh3 {[%emt 0:01:00] [#]} Qxe3 $3 {[%emt 0:00:38][%mdl 512] Weighted Error Value: White=0.82/Black=0.04 (flawless)} 0-1

[Event "Germany Countries-chT Youth 2022"]
[Site "Wiesbaden"]
[Date "2022.10.01"]
[Round "1"]
[White "Möller, Maurin"]
[Black "Pohle, Saskia"]
[Result "1-0"]
[ECO "C56"]
[WhiteElo "1936"]
[BlackElo "1756"]
[Annotator "TA"]
[PlyCount "53"]
[EventDate "2022.09.28"]
[EventType "team-tourn"]
[EventRounds "7"]
[EventCountry "GER"]
[SourceTitle "playchess.com"]
[Source "ChessBase"]
[SourceQuality "1"]
[TimeControl "40/5400+30:1800+30"]

{[%evp 14,53,0,0,0,0,0,-10,-7,-34,-24,-62,21,24,26,23,35,-42,75,50,39,0,0,-51,-42,-34,15,27,99,111,267,83,350,325,366,27,215,222,229,227,1478,1400]} 1. e4 {[%emt 0:00:03][%cal Be2e4,Be4e5][%mdl 32]} e5 {[%emt 0:00:04]} 2. Nf3 {[%emt 0:00:06]} Nc6 {[%emt 0:00:03]} 3. Bc4 {[%emt 0:00:11]} Nf6 {[%emt 0:00:05]} 4. d4 {[%emt 0:00:16]} exd4 {[%emt 0:00:04]} 5. e5 {[%emt 0:00:19]} d5 {[%emt 0:00:04]} 6. Bb5 {[%emt 0:00:13]} Nd7 {[%emt 0:00:07]} 7. O-O {[%emt 0:10:49]} Be7 {[%emt 0:00:05]} 8. Re1 {[%emt 0:09:38]} O-O {[%emt 0:05:03] C56: Two Knights: 4 d4 exd4 5 0-0 Nxe4.} 9. Bxc6 {[%emt 0:12:53]} bxc6 {[%emt 0:00:08]} 10. Nxd4 {[%emt 0:00:19]} Nb8 {[%emt 0:02:45] The position is equal.} 11. f4 {[%emt 0:19:43]} c5 {[%emt 0:07:12] [#]} 12. Nb3 $146 {[%emt 0:07:54][%cal Oc2c4,Bd4b3,Bb3d2,Bd2f3][%mdl 32]} ({Predecessor:} 12. Nf3 Nc6 13. Nc3 d4 14. Ne4 Be6 15. Ng3 Qd7 16. c3 Rad8 17. Qa4 Bd5 18. f5 Bxf3 19. gxf3 {0-1 (37) Yoo,C (2479)-Niemann,H (2571) Chess.com INT 2021}) 12... d4 {[%emt 0:07:36]} ({Better is} 12... c4 $15 13. Nd4 c5) 13. Qf3 {[%emt 0:01:47]} c6 {[%emt 0:00:41]} 14. N1d2 {[%emt 0:05:02][%cal Bb1d2,Bd2e4,Be4g3,Bg3f5][%mdl 32]} a5 {[%emt 0:08:08] Hoping for ...a4.} 15. a4 {[%emt 0:02:56]} (15. Ne4 $1 $14) 15... Ba6 {[%emt 0:10:19]} (15... Bf5 $15 {keeps the upper hand.}) 16. Ne4 {[%emt 0:01:55] f5 is the strong threat. White is more active.} c4 {[%emt 0:02:34]} 17. Nbd2 {[%emt 0:00:20]} Qd5 {[%emt 0:03:04]} 18. Qh5 {[%emt 0:07:34]} (18. Qg3 $11 Kh8 19. Kh1) 18... Nd7 $15 {[%emt 0:11:30]} 19. Nf3 {[%emt 0:02:59]} Nc5 {[%emt 0:06:53]} (19... f6 $15 {is more appropriate.}) 20. Ng3 $11 {[%emt 0:02:22] Pair of Knights!} Rfe8 {[%emt 0:04:46]} (20... d3 $11) 21. f5 $16 {[%emt 0:00:41] Black must now prevent Qg4.} Bf8 $2 {[%emt 0:01:48]} (21... d3 $16) 22. f6 $2 {[%emt 0:02:12]} (22. Ng5 $18 {[%csl Gg5][%cal Rh5h7]} h6 23. e6 hxg5 24. Qxf7+ Kh8 25. Qh5+ (25. Bxg5 Nxe6 26. Rxe6 Rxe6 $11) 25... Kg8 26. Qg6 (26. Bxg5 Nxe6 27. fxe6 Rxe6 $11)) 22... Ne6 $2 {[%emt 0:06:07][%mdl 8192]} (22... g6 $16 23. Qh4 Ne6) 23. Nf5 $18 {[%emt 0:01:22]} Ra7 {[%emt 0:09:56]} 24. Qg4 {[%emt 0:08:09]} ({White should play} 24. Ng5 $18 Nxg5 25. fxg7 (25. Qxg5 g6 $11) 25... Bxg7 26. Bxg5 (26. Qxg5 f6 $14) 26... Rxe5 {[#]} 27. Bf4 $1) 24... Bc8 $2 {[%emt 0:03:16]} (24... g6) (24... g6 $1 $11) 25. Bh6 $1 {[%emt 0:01:19][%cal Rh6g7] Strongly threatening Bxg7.} (25. N5xd4 $2 Nxd4 26. Qxd4 Bc5 27. Qxc5 Qxc5+ $17) 25... g6 {[%emt 0:03:12]} 26. Bxf8 {[%emt 0:00:15] The board is on fire.} Nxf8 {[%emt 0:00:54] [#]} (26... Rxf8 27. Ne7+ (27. N5xd4 Nxd4 28. Qxd4 Qxd4+ 29. Nxd4 Bd7 $16) (27. N3xd4 Kh8 $11) 27... Rxe7 28. fxe7 Re8) 27. Qg5 $1 {[%emt 0:00:15] Weighted Error Value: White=0.48/Black=0.64} 1-0

[Event "Germany Countries-chT Youth 2022"]
[Site "Wiesbaden"]
[Date "2022.10.01"]
[Round "1"]
[White "Neuhoff, Laertes"]
[Black "Wunderlich, Elias"]
[Result "1-0"]
[ECO "C07"]
[WhiteElo "1885"]
[BlackElo "1815"]
[Annotator "NA RC COMBH"]
[PlyCount "87"]
[EventDate "2022.09.28"]
[EventType "team-tourn"]
[EventRounds "7"]
[EventCountry "GER"]
[SourceTitle "playchess.com"]
[Source "ChessBase"]
[SourceQuality "1"]
[TimeControl "40/5400+30:1800+30"]

1. e4 e6 2. d4 d5 3. Nd2 c5 4. exd5 Qxd5 5. Ngf3 cxd4 6. Bc4 Qd6 7. O-O Nf6 8. Nb3 Nc6 9. Nbxd4 Nxd4 10. Nxd4 Be7 11. Be3 O-O 12. Qf3 Qc7 13. Bb3 Bd7 14. Rfd1 Rfd8 15. Rac1 Bd6 16. Qh3 e5 17. Nf5 Bf8 18. Qf3 Bc6 19. Nh6+ gxh6 20. Qxf6 Bg7 21. Bxf7+ Kh8 22. Rxd8+ Rxd8 23. Qh4 Rd6 24. Bh5 Qa5 25. Qe7 Qb4 26. Qc7 Rf6 27. b3 Rf8 28. c4 Qa3 29. Rc2 Qb4 30. Rd2 Qc3 31. Qd6 Rg8 32. Qd3 Qc1+ 33. Qf1 Qa3 34. Bf7 Rf8 35. Bd5 Rd8 36. Qd1 Rf8 37. Bxc6 bxc6 38. Qc2 a5 39. Rd7 Qb4 40. Bd2 Qc5 41. Bxh6 Rg8 42. Qf5 Qb4 43. Bxg7+ Rxg7 44. Rd8+ 1-0

[Event "Germany Countries-chT Youth 2022"]
[Site "Wiesbaden"]
[Date "2022.10.01"]
[Round "1"]
[White "Malinowsky, Levi"]
[Black "Braun, Julian"]
[Result "1-0"]
[ECO "C95"]
[WhiteElo "1879"]
[BlackElo "1715"]
[Annotator "NA RC COMBH"]
[PlyCount "103"]
[EventDate "2022.09.28"]
[EventType "team-tourn"]
[EventRounds "7"]
[EventCountry "GER"]
[SourceTitle "playchess.com"]
[Source "ChessBase"]
[SourceQuality "1"]
[TimeControl "40/5400+30:1800+30"]

1. e4 {[%emt 0:00:04]} e5 {[%emt 0:00:01]} 2. Nf3 {[%emt 0:00:10]} Nc6 {[%emt 0:00:04]} 3. Bb5 {[%emt 0:00:16]} a6 {[%emt 0:00:02]} 4. Ba4 {[%emt 0:00:26]} Nf6 {[%emt 0:00:02]} 5. O-O {[%emt 0:01:04]} Be7 {[%emt 0:00:18]} 6. Re1 {[%emt 0:00:56]} b5 {[%emt 0:00:11]} 7. Bb3 {[%emt 0:00:29]} d6 {[%emt 0:00:17]} 8. c3 {[%emt 0:01:51]} O-O {[%emt 0:00:26]} 9. h3 {[%emt 0:01:37]} Nb8 {[%emt 0:00:20]} 10. d4 {[%emt 0:01:55]} Nbd7 {[%emt 0:00:02]} 11. Nbd2 {[%emt 0:04:32]} Bb7 {[%emt 0:00:24]} 12. Bc2 {[%emt 0:03:07]} Re8 {[%emt 0:05:11]} 13. Nf1 {[%emt 0:02:40]} Bf8 {[%emt 0:00:29]} 14. Ng3 {[%emt 0:02:56]} g6 {[%emt 0:01:09]} 15. Nh2 {[%emt 0:07:28]} Bg7 {[%emt 0:01:42]} 16. f4 {[%emt 0:04:43]} exd4 {[%emt 0:07:27]} 17. cxd4 {[%emt 0:01:46]} c5 {[%emt 0:02:52]} 18. d5 {[%emt 0:07:24]} Qb6 {[%emt 0:03:59]} 19. Nf3 {[%emt 0:05:36]} Re7 {[%emt 0:03:12]} 20. Be3 {[%emt 0:04:38]} Rae8 {[%emt 0:01:38]} 21. Qd2 {[%emt 0:03:37]} b4 {[%emt 0:19:44]} 22. Bd3 {[%emt 0:08:28]} a5 {[%emt 0:06:19]} 23. a3 {[%emt 0:03:45]} Qc7 {[%emt 0:06:19]} 24. axb4 {[%emt 0:02:15]} axb4 {[%emt 0:00:13]} 25. Bf2 {[%emt 0:04:01]} Nb6 {[%emt 0:13:08]} 26. Qc2 {[%emt 0:03:42]} c4 {[%emt 0:05:09]} 27. Rac1 {[%emt 0:02:53]} Rc8 {[%emt 0:02:46]} 28. Qd2 {[%emt 0:03:23]} c3 {[%emt 0:03:25]} 29. bxc3 {[%emt 0:00:37]} bxc3 {[%emt 0:00:16]} 30. Qc2 {[%emt 0:01:47]} Nbd7 {[%emt 0:03:11]} 31. Nd4 {[%emt 0:02:05]} Qb8 {[%emt 0:05:14]} 32. Rb1 {[%emt 0:02:02]} Nc5 {[%emt 0:01:55]} 33. Nc6 $18 {[%emt 0:02:12]} ({Weaker is} 33. Qxc3 Qa7 $16) 33... Qc7 {[%emt 0:01:07]} 34. Bxc5 {[%emt 0:02:24]} Bxc6 {[%emt 0:01:24]} 35. Bb6 {[%emt 0:00:10]} Qd7 {[%emt 0:00:49]} 36. dxc6 {[%emt 0:00:19]} Qxc6 {[%emt 0:00:17]} 37. Bd4 {[%emt 0:02:17]} h5 {[%emt 0:02:34]} 38. Rb6 {[%emt 0:03:21]} Qc7 {[%emt 0:01:10]} 39. Reb1 {[%emt 0:01:21]} Nxe4 {[%emt 0:02:42]} 40. Bxg7 {[%emt 0:01:31]} Nxg3 {[%emt 0:00:03]} 41. Bd4 {[%emt 0:31:09]} h4 {[%emt 0:03:48]} 42. Bf6 {[%emt 0:00:00]} Qc5+ {[%emt 0:03:19]} 43. Kh2 {[%emt 0:00:00]} Re3 {[%emt 0:02:29]} 44. Bxh4 {[%emt 0:00:00]} Rxd3 {[%emt 0:03:14]} 45. Qxd3 {[%emt 0:00:00]} Nf5 {[%emt 0:00:14]} 46. R6b5 {[%emt 0:00:00]} Qd4 {[%emt 0:01:21]} 47. Qxd4 {[%emt 0:00:00]} Nxd4 {[%emt 0:00:03]} 48. Rb8 {[%emt 0:00:00]} Rf8 {[%emt 0:01:00]} 49. Rxf8+ {[%emt 0:00:00]} Kxf8 {[%emt 0:00:20]} 50. Bf6 {[%emt 0:00:00]} Nc6 {[%emt 0:00:46]} 51. Rb6 {[%emt 0:00:00]} c2 {[%emt 0:00:55]} 52. Rxc6 {[%emt 0:00:31]} 1-0

[Event "Germany Countries-chT Youth 2022"]
[Site "Wiesbaden"]
[Date "2022.10.01"]
[Round "1"]
[White "Bock, Marlon"]
[Black "von Mettenheim, Johannes"]
[Result "1-0"]
[ECO "A47"]
[WhiteElo "1866"]
[BlackElo "2231"]
[Annotator "TA"]
[PlyCount "99"]
[EventDate "2022.09.28"]
[EventType "team-tourn"]
[EventRounds "7"]
[EventCountry "GER"]
[SourceTitle "playchess.com"]
[Source "ChessBase"]
[SourceQuality "1"]
[TimeControl "40/5400+30:1800+30"]

{[%evp 12,99,11,0,29,1,4,-2,6,4,0,0,0,0,0,0,0,-10,15,4,12,0,13,0,8,0,0,-7,0,-16,0,0,29,10,35,0,19,8,70,57,66,78,66,0,0,18,0,4,0,0,24,0,4,4,4,4,10,12,4,0,4,10,82,75,229,0,257,246,372,225,656,663,651,591,655,643,632,614,610,384,29981,29980,29990,29991,29991,29992,29993,29994,29997,1495]} 1. d4 {[%emt 0:00:04]} Nf6 {[%emt 0:00:17]} 2. Nf3 {[%emt 0:00:05]} e6 {[%emt 0:00:10]} 3. e3 {[%emt 0:00:19]} b6 {[%emt 0:00:56]} 4. Bd3 {[%emt 0:00:37]} Bb7 {[%emt 0:00:09]} 5. Nbd2 {[%emt 0:00:48]} c5 {[%emt 0:00:51]} 6. O-O {[%emt 0:01:30]} Be7 {[%emt 0:02:31]} 7. c3 {[%emt 0:03:36]} cxd4 {[%emt 0:00:17] A47: 1 d4 Nf6 2 Nf3 b6: Torre, London and Colle Systems.} 8. cxd4 {[%emt 0:02:58]} d5 {[%emt 0:06:57]} 9. b3 {[%emt 0:03:13]} O-O {[%emt 0:01:03] The position is equal.} 10. Bb2 {[%emt 0:01:29] [#]} Ba6 $146 {[%emt 0:02:48]} ({Predecessor:} 10... Nc6 11. a3 a5 12. Qe2 Rc8 13. Rac1 Bd6 14. Ne5 Qe7 15. Ba6 Nb8 16. Bxb7 Qxb7 {½-½ (43) Saidov,B (2389)-Ismailov,M (2133) Tashkent 2012}) 11. Qe2 {[%emt 0:06:45]} Bxd3 {[%emt 0:01:21]} 12. Qxd3 {[%emt 0:00:07]} Nc6 {[%emt 0:06:33]} 13. Rac1 {[%emt 0:06:59]} Rc8 {[%emt 0:09:04]} 14. a3 {[%emt 0:09:57]} Nd7 {[%emt 0:06:12]} 15. Rc2 {[%emt 0:06:40]} Qc7 {[%emt 0:07:55]} 16. Rfc1 {[%emt 0:06:41]} Qb7 {[%emt 0:00:23]} 17. Ne5 {[%emt 0:10:47]} Ncb8 {[%emt 0:04:06]} 18. f4 {[%emt 0:04:40]} Bd6 {[%emt 0:21:09]} 19. Rc3 {[%emt 0:08:38]} Nf6 {[%emt 0:08:24]} 20. Qc2 {[%emt 0:03:37][%cal Rc3c8]} Rcd8 {[%emt 0:00:19]} 21. b4 {[%emt 0:04:20]} Qa6 {[%emt 0:01:12]} 22. Qd3 {[%emt 0:02:56]} b5 {[%emt 0:03:22]} 23. Qc2 {[%emt 0:02:07]} Nfd7 {[%emt 0:04:46]} 24. Nb3 {[%emt 0:02:56]} Nb6 {[%emt 0:01:18]} (24... Qb7 $11) 25. Nc5 $14 {[%emt 0:02:20]} Bxc5 {[%emt 0:00:08]} 26. dxc5 {[%emt 0:01:13]} (26. Rxc5 $6 Rde8 $11) 26... Nc4 {[%emt 0:00:56]} 27. Rd3 {[%emt 0:01:12]} (27. Nxc4 $14 dxc4 28. a4) 27... Nc6 $11 {[%emt 0:03:19]} 28. Nxc4 {[%emt 0:00:42]} dxc4 {[%emt 0:00:28]} 29. Rd6 {[%emt 0:01:47]} Rxd6 {[%emt 0:01:28]} 30. cxd6 {[%emt 0:00:03][%cal Oa3a4]} Qb6 {[%emt 0:00:51]} 31. Qd2 {[%emt 0:01:30]} (31. Qe4 {with more complications.} Re8 32. a4 a6 33. a5) 31... Rd8 {[%emt 0:01:44]} 32. Rd1 $40 {[%emt 0:00:56][%mdl 128] White has some attack.} Rd7 {[%emt 0:01:23]} 33. Kh1 {[%emt 0:01:50]} f5 {[%emt 0:03:38]} 34. h3 {[%emt 0:02:01]} Nd8 {[%emt 0:00:16]} 35. Be5 {[%emt 0:01:29][%cal Oa3a4]} Qb7 {[%emt 0:00:35]} 36. Qd4 {[%emt 0:00:44][%cal Oa3a4]} Qa6 {[%emt 0:00:32]} (36... Qb6 $11 {keeps the balance.}) 37. Qc5 $16 {[%emt 0:00:40][%cal Oa3a4] Threatens to win with a4! White has more active pieces.} Kf7 $2 {[%emt 0:00:14]} (37... Qb7 $16) 38. Bb2 $2 {[%emt 0:00:21]} (38. a4 $1 $18 {[%cal Ra4b5]}) 38... Qa4 {[%emt 0:01:10][%mdl 8192] [#]} (38... Qc6 $1 $11 {and Black has nothing to worry.}) 39. Rd2 $1 $18 {[%emt 0:00:30][%cal Oe3e4] Strongly threatening e4!} (39. Qd4 Kf8 $14) 39... Ke8 {[%emt 0:00:17]} (39... Qb3 $142 40. Qxb5 Ke8) 40. g4 {[%emt 0:00:41]} (40. Qc8 h5 $14) 40... fxg4 $2 {[%emt 0:00:28] [#]} (40... Qa6 41. gxf5 Qb7+ 42. Kh2 Qe4) 41. Qh5+ $1 {[%emt 0:04:22]} Nf7 {[%emt 0:05:02]} 42. Qxg4 {[%emt 0:06:34][%cal Ob2f6] Bf6! would kill now.} (42. Qxh7 Rxd6 43. Qg8+ Ke7 44. Rxd6 Kxd6 45. Qf8+ (45. Qxf7 Qd1+ 46. Kh2 Qd2+ 47. Kg3 Qxe3+ 48. Kxg4 Qe2+ 49. Kg3 Qxb2 $11) 45... Kd5 46. Qa8+ (46. Qxf7 Qd1+ 47. Kh2 Qd2+ 48. Kg3 Qxe3+ 49. Kh4 Qf2+ 50. Kg5 Qxb2 $11) 46... Kd6 47. Qf8+ Kd5 48. Qxf7 Qd1+ 49. Kh2 Qd2+ 50. Kg3 Qxe3+ 51. Kh4 Qf2+ 52. Kg5 Qxb2 53. Qb7+ Kd6 54. Qa6+ Kc7 55. Qxa7+ Kd8 $11) 42... Qa6 {[%emt 0:04:06]} 43. Qxe6+ {[%emt 0:01:47]} Kd8 {[%emt 0:00:07] Hoping for ...c3.} 44. Bxg7 {[%emt 0:04:54]} Kc8 {[%emt 0:20:07]} 45. Be5 {[%emt 0:06:42]} Qxa3 $2 {[%emt 0:01:36]} (45... Nd8 $18 46. Qd5 Qc6) 46. Qd5 {[%emt 0:00:24][%cal Rd5a8] White mates.} Kb8 {[%emt 0:01:11]} 47. Qxb5+ {[%emt 0:01:12]} Ka8 {[%emt 0:00:06]} 48. Qxc4 {[%emt 0:01:56][%cal Rc4c8]} ({Weaker is} 48. Bb2 Qxe3 49. Qxd7 (49. Qc6+ Kb8 $11) 49... Qe1+ 50. Kh2 Qxd2+ 51. Kg3 Qe3+ 52. Kg4 Qg1+ 53. Kh4 Qf2+ 54. Kh5 (54. Kg4 Qg2+ 55. Kh4 Qf2+ 56. Kg4 Qg2+ 57. Kh4 Qf2+ $16) 54... Qe2+ 55. Kh4 Qf2+ 56. Kh5 (56. Kg4 Qg2+ 57. Kh4 Qf2+ $16) 56... Qe2+ 57. Qg4 Qxg4+ 58. hxg4 Kb7 $16) 48... Kb7 {[%emt 0:00:49]} 49. Rc2 {[%emt 0:01:43]} Qa4 {[%emt 0:00:08]} 50. Qc8+ {[%emt 0:00:23] Weighted Error Value: White=0.27 (precise) /Black=0.45} 1-0